[Event "Live Chess"]
[Site "Chess.com"]
[Date "2023.05.20"]
[Round "-"]
[White "AwesomeFredster"]
[Black "jennybobby44"]
[Result "0-1"]
[WhiteElo "1482"]
[BlackElo "1858"]
[TimeControl "300"]
[EndTime "9:50:28 PDT"]
[Termination "jennybobby44 won by checkmate"]

1. e4 {[%clk 0:04:59.3]} 1... c5 {[%clk 0:04:58.5]} 2. Nf3 {[%clk 0:04:58]} 2...
d6 {[%clk 0:04:57.7]} 3. d4 {[%clk 0:04:56.9]} 3... cxd4 {[%clk 0:04:57.6]} 4.
Nxd4 {[%clk 0:04:56]} 4... Nf6 {[%clk 0:04:57.3]} 5. Nc3 {[%clk 0:04:54.2]} 5...
a6 {[%clk 0:04:56.5]} 6. f3 {[%clk 0:04:53.5]} 6... e5 {[%clk 0:04:55.6]} 7. Nb3
{[%clk 0:04:51.4]} 7... Be6 {[%clk 0:04:55.2]} 8. a3 {[%clk 0:04:48.6]} 8... Be7
{[%clk 0:04:53.4]} 9. Be3 {[%clk 0:04:47.3]} 9... O-O {[%clk 0:04:52.2]} 10. Qd2
{[%clk 0:04:46.2]} 10... d5 {[%clk 0:04:43.3]} 11. Nc5 {[%clk 0:04:32.7]} 11...
d4 {[%clk 0:04:37.5]} 12. Nxe6 {[%clk 0:04:30.5]} 12... fxe6 {[%clk 0:04:36.6]}
13. Bh6 {[%clk 0:04:13.4]} 13... gxh6 {[%clk 0:04:28.9]} 14. Qxh6 {[%clk
0:04:12.1]} 14... dxc3 {[%clk 0:04:20.6]} 15. Bc4 {[%clk 0:04:08.8]} 15... Qb6
{[%clk 0:04:04.5]} 16. O-O-O {[%clk 0:04:00.5]} 16... Qxb2# {[%clk 0:04:01.9]}
0-1

[Event "Live Chess"]
[Site "Chess.com"]
[Date "2023.05.20"]
[Round "-"]
[White "noobsmoker24"]
[Black "KGreenGator"]
[Result "1-0"]
[WhiteElo "1388"]
[BlackElo "1766"]
[TimeControl "300"]
[EndTime "9:50:31 PDT"]
[Termination "noobsmoker24 won by checkmate"]

1. e4 {[%clk 0:04:59.6]} 1... c5 {[%clk 0:04:58.8]} 2. Nf3 {[%clk 0:04:58.9]}
2... Nc6 {[%clk 0:04:57.5]} 3. d4 {[%clk 0:04:58.3]} 3... cxd4 {[%clk
0:04:56.1]} 4. Nxd4 {[%clk 0:04:58.2]} 4... e5 {[%clk 0:04:55]} 5. Nb5 {[%clk
0:04:56.8]} 5... d6 {[%clk 0:04:53.7]} 6. N1c3 {[%clk 0:04:55.4]} 6... a6 {[%clk
0:04:52.6]} 7. Na3 {[%clk 0:04:54.5]} 7... Be6 {[%clk 0:04:51]} 8. Be3 {[%clk
0:04:49.7]} 8... Nf6 {[%clk 0:04:49.7]} 9. Bg5 {[%clk 0:04:48.3]} 9... Be7
{[%clk 0:04:47.9]} 10. Bxf6 {[%clk 0:04:45.7]} 10... Bxf6 {[%clk 0:04:47.3]} 11.
Qd2 {[%clk 0:04:42.8]} 11... O-O {[%clk 0:04:46]} 12. O-O-O {[%clk 0:04:41.6]}
12... Nd4 {[%clk 0:04:41.8]} 13. Kb1 {[%clk 0:04:39.8]} 13... b5 {[%clk
0:04:39.9]} 14. Nd5 {[%clk 0:04:38.8]} 14... Bxd5 {[%clk 0:04:36.6]} 15. exd5
{[%clk 0:04:38.7]} 15... Rc8 {[%clk 0:04:32.6]} 16. Bd3 {[%clk 0:04:15]} 16...
Bg5 {[%clk 0:04:30.9]} 17. Qe1 {[%clk 0:03:56.8]} 17... Qc7 {[%clk 0:04:25.8]}
18. h4 {[%clk 0:03:51.8]} 18... Bh6 {[%clk 0:04:24.2]} 19. g4 {[%clk 0:03:50]}
19... g6 {[%clk 0:04:22.4]} 20. h5 {[%clk 0:03:47.7]} 20... Bg7 {[%clk
0:04:21.9]} 21. f4 {[%clk 0:03:42.4]} 21... exf4 {[%clk 0:04:19.8]} 22. hxg6
{[%clk 0:03:40.9]} 22... fxg6 {[%clk 0:04:18.2]} 23. Qh4 {[%clk 0:03:37.1]}
23... Bf6 {[%clk 0:04:15.4]} 24. g5 {[%clk 0:03:33.2]} 24... Bd8 {[%clk
0:04:12.8]} 25. Bxg6 {[%clk 0:03:29.2]} 25... Nf3 {[%clk 0:03:58.6]} 26. Bxh7+
{[%clk 0:03:20.3]} 26... Kf7 {[%clk 0:03:51.9]} 27. g6+ {[%clk 0:02:55.4]} 27...
Ke8 {[%clk 0:03:40.1]} 28. Rhe1+ {[%clk 0:02:45.6]} 28... Nxe1 {[%clk
0:03:33.4]} 29. Rxe1+ {[%clk 0:02:44.7]} 29... Be7 {[%clk 0:03:31.9]} 30. g7
{[%clk 0:02:36.8]} 30... Kd8 {[%clk 0:03:26.4]} 31. gxf8=Q+ {[%clk 0:02:32.9]}
31... Kd7 {[%clk 0:03:24.4]} 32. Bf5# {[%clk 0:02:29.5]} 1-0

[Event "Live Chess"]
[Site "Chess.com"]
[Date "2023.05.20"]
[Round "-"]
[White "guptarayan"]
[Black "Bob2pen"]
[Result "0-1"]
[WhiteElo "587"]
[BlackElo "1830"]
[TimeControl "300"]
[EndTime "9:50:31 PDT"]
[Termination "Bob2pen won by resignation"]

1. e4 {[%clk 0:04:58.4]} 1... e6 {[%clk 0:04:58.7]} 2. d4 {[%clk 0:04:56.6]}
2... d5 {[%clk 0:04:57.6]} 3. e5 {[%clk 0:04:54.7]} 3... c5 {[%clk 0:04:56.5]}
4. c3 {[%clk 0:04:53]} 4... Nc6 {[%clk 0:04:55.5]} 5. f4 {[%clk 0:04:49.5]} 5...
Qb6 {[%clk 0:04:52.6]} 6. Nf3 {[%clk 0:04:47]} 6... Bd7 {[%clk 0:04:50.4]} 7.
Be2 {[%clk 0:04:41]} 7... cxd4 {[%clk 0:04:47]} 8. Nxd4 {[%clk 0:04:36.1]} 8...
Nge7 {[%clk 0:04:44.2]} 9. O-O {[%clk 0:04:26.7]} 9... Nxd4 {[%clk 0:04:42.2]}
10. cxd4 {[%clk 0:04:23.9]} 10... Nf5 {[%clk 0:04:40.4]} 11. Nc3 {[%clk
0:04:21]} 11... Qxd4+ {[%clk 0:04:37.7]} 12. Qxd4 {[%clk 0:04:17.8]} 12... Nxd4
{[%clk 0:04:36.3]} 13. Bf3 {[%clk 0:04:11.7]} 13... Nxf3+ {[%clk 0:04:25.4]} 14.
Rxf3 {[%clk 0:04:07.7]} 14... Bc5+ {[%clk 0:04:23.7]} 15. Be3 {[%clk 0:03:59.1]}
15... d4 {[%clk 0:04:21.1]} 16. Bxd4 {[%clk 0:03:54.9]} 16... Bxd4+ {[%clk
0:04:19.5]} 17. Kh1 {[%clk 0:03:49.5]} 17... Bxc3 {[%clk 0:04:10.6]} 18. bxc3
{[%clk 0:03:47.3]} 18... Bc6 {[%clk 0:04:08.6]} 19. Rf2 {[%clk 0:03:41]} 19...
Ke7 {[%clk 0:04:04.9]} 20. Rd1 {[%clk 0:03:30.3]} 20... Rad8 {[%clk 0:04:03.3]}
21. Rxd8 {[%clk 0:03:28.3]} 21... Rxd8 {[%clk 0:04:01.7]} 22. h3 {[%clk
0:03:27.3]} 22... Rd3 {[%clk 0:03:57.9]} 23. c4 {[%clk 0:03:24.4]} 23... Rxh3+
{[%clk 0:03:54.1]} 24. Kg1 {[%clk 0:03:08.6]} 24... Rc3 {[%clk 0:03:52.4]} 25.
c5 {[%clk 0:03:05.7]} 25... Rxc5 {[%clk 0:03:50.6]} 26. Rb2 {[%clk 0:02:59.5]}
26... f6 {[%clk 0:03:44.4]} 27. exf6+ {[%clk 0:02:47.5]} 27... gxf6 {[%clk
0:03:43.1]} 28. Kf2 {[%clk 0:02:44.5]} 28... e5 {[%clk 0:03:40.3]} 29. fxe5
{[%clk 0:02:43.3]} 29... Rxe5 {[%clk 0:03:38.4]} 30. a4 {[%clk 0:02:39.3]} 30...
Rg5 {[%clk 0:03:36.8]} 31. a5 {[%clk 0:02:37.4]} 31... Rxg2+ {[%clk 0:03:35.3]}
32. Ke3 {[%clk 0:02:35]} 32... Rxb2 {[%clk 0:03:33.5]} 0-1

[Event "Live Chess"]
[Site "Chess.com"]
[Date "2023.05.20"]
[Round "-"]
[White "Jeffaroow"]
[Black "Enhard"]
[Result "0-1"]
[WhiteElo "451"]
[BlackElo "1403"]
[TimeControl "300"]
[EndTime "9:50:33 PDT"]
[Termination "Enhard won by checkmate"]

1. e4 {[%clk 0:04:59.2]} 1... c6 {[%clk 0:04:58.6]} 2. d4 {[%clk 0:04:57.2]}
2... d5 {[%clk 0:04:57]} 3. Nc3 {[%clk 0:04:55.2]} 3... dxe4 {[%clk 0:04:55.2]}
4. Nxe4 {[%clk 0:04:54]} 4... Bf5 {[%clk 0:04:54.7]} 5. Bd3 {[%clk 0:04:52.2]}
5... e6 {[%clk 0:04:50.2]} 6. Nf3 {[%clk 0:04:49.2]} 6... Nd7 {[%clk 0:04:47.9]}
7. Ne5 {[%clk 0:04:45.8]} 7... Bxe4 {[%clk 0:04:46.4]} 8. Bxe4 {[%clk
0:04:44.1]} 8... Nxe5 {[%clk 0:04:44.8]} 9. dxe5 {[%clk 0:04:42.9]} 9... Qxd1+
{[%clk 0:04:42.8]} 10. Kxd1 {[%clk 0:04:41]} 10... O-O-O+ {[%clk 0:04:42.1]} 11.
Ke1 {[%clk 0:04:39.7]} 11... Bb4+ {[%clk 0:04:40.6]} 12. c3 {[%clk 0:04:37.2]}
12... Bc5 {[%clk 0:04:36.6]} 13. Bg5 {[%clk 0:04:35.5]} 13... Rd7 {[%clk
0:04:26]} 14. Rd1 {[%clk 0:04:29.9]} 14... Rxd1+ {[%clk 0:04:23.6]} 15. Kxd1
{[%clk 0:04:27.4]} 15... h6 {[%clk 0:04:23.5]} 16. Be3 {[%clk 0:04:21.4]} 16...
Bxe3 {[%clk 0:04:21.8]} 17. fxe3 {[%clk 0:04:21.3]} 17... Ne7 {[%clk 0:04:20.7]}
18. Re1 {[%clk 0:04:14.4]} 18... Rd8+ {[%clk 0:04:18.8]} 19. Ke2 {[%clk
0:04:12.7]} 19... Nd5 {[%clk 0:04:15.9]} 20. Bxd5 {[%clk 0:04:10.8]} 20... Rxd5
{[%clk 0:04:07.4]} 21. b4 {[%clk 0:04:01.9]} 21... Rxe5 {[%clk 0:04:06.1]} 22.
Rf1 {[%clk 0:03:58]} 22... f6 {[%clk 0:04:04.4]} 23. Rf3 {[%clk 0:03:56.3]}
23... Kd7 {[%clk 0:04:00.5]} 24. Rg3 {[%clk 0:03:55]} 24... Rg5 {[%clk
0:03:59.5]} 25. Rxg5 {[%clk 0:03:50]} 25... hxg5 {[%clk 0:03:58.3]} 26. Kf3
{[%clk 0:03:48.6]} 26... Kd6 {[%clk 0:03:57.6]} 27. g4 {[%clk 0:03:46.3]} 27...
Ke5 {[%clk 0:03:56.1]} 28. Kg3 {[%clk 0:03:42.6]} 28... Ke4 {[%clk 0:03:53.4]}
29. h4 {[%clk 0:03:40]} 29... gxh4+ {[%clk 0:03:51.1]} 30. Kxh4 {[%clk
0:03:39.1]} 30... Kxe3 {[%clk 0:03:50.6]} 31. g5 {[%clk 0:03:37.8]} 31... fxg5+
{[%clk 0:03:47.5]} 32. Kxg5 {[%clk 0:03:37.7]} 32... e5 {[%clk 0:03:47.1]} 33.
Kf5 {[%clk 0:03:36.7]} 33... e4 {[%clk 0:03:47]} 34. a4 {[%clk 0:03:33.9]} 34...
Kd3 {[%clk 0:03:44.5]} 35. c4 {[%clk 0:03:29]} 35... e3 {[%clk 0:03:41.4]} 36.
Kf4 {[%clk 0:03:27.1]} 36... e2 {[%clk 0:03:40.4]} 37. b5 {[%clk 0:03:25.3]}
37... e1=Q {[%clk 0:03:37.9]} 38. bxc6 {[%clk 0:03:23.2]} 38... bxc6 {[%clk
0:03:36.8]} 39. Kf5 {[%clk 0:03:21.1]} 39... Kxc4 {[%clk 0:03:33.4]} 40. Kg6
{[%clk 0:03:19.3]} 40... Kd5 {[%clk 0:03:31.7]} 41. Kxg7 {[%clk 0:03:17.2]}
41... Qf1 {[%clk 0:03:31.2]} 42. Kg8 {[%clk 0:03:15.7]} 42... Ke6 {[%clk
0:03:29.9]} 43. Kg7 {[%clk 0:03:14.7]} 43... Qf2 {[%clk 0:03:28.4]} 44. Kg8
{[%clk 0:03:11.3]} 44... Ke7 {[%clk 0:03:27.2]} 45. a5 {[%clk 0:03:08.8]} 45...
Qg2+ {[%clk 0:03:24.2]} 46. Kh7 {[%clk 0:03:05]} 46... Qg5 {[%clk 0:03:21.9]}
47. Kh8 {[%clk 0:03:02.9]} 47... Kf7 {[%clk 0:03:21.2]} 48. a6 {[%clk 0:03:00]}
48... Qg7# {[%clk 0:03:21.1]} 0-1

[Event "Live Chess"]
[Site "Chess.com"]
[Date "2023.05.20"]
[Round "-"]
[White "GEMdzq"]
[Black "Fazer180"]
[Result "1-0"]
[WhiteElo "2295"]
[BlackElo "1716"]
[TimeControl "300"]
[EndTime "9:50:36 PDT"]
[Termination "GEMdzq won by checkmate"]

1. e4 {[%clk 0:04:56.6]} 1... e6 {[%clk 0:04:59.3]} 2. d4 {[%clk 0:04:54.2]}
2... d5 {[%clk 0:04:59.2]} 3. Nc3 {[%clk 0:04:52.4]} 3... Bb4 {[%clk 0:04:56.9]}
4. e5 {[%clk 0:04:51.5]} 4... c5 {[%clk 0:04:56.1]} 5. Bd2 {[%clk 0:04:49.9]}
5... cxd4 {[%clk 0:04:45.7]} 6. Nb5 {[%clk 0:04:49]} 6... Bxd2+ {[%clk
0:04:42.6]} 7. Qxd2 {[%clk 0:04:48.9]} 7... Nc6 {[%clk 0:04:28.3]} 8. Nd6+
{[%clk 0:04:38.8]} 8... Kf8 {[%clk 0:04:26.9]} 9. f4 {[%clk 0:04:37.9]} 9...
Nge7 {[%clk 0:04:22.2]} 10. Nf3 {[%clk 0:04:36.3]} 10... Nf5 {[%clk 0:04:20.2]}
11. Nxf5 {[%clk 0:04:34.6]} 11... exf5 {[%clk 0:04:20.1]} 12. Nxd4 {[%clk
0:04:33.8]} 12... a6 {[%clk 0:04:14.9]} 13. Be2 {[%clk 0:04:21.9]} 13... Qb6
{[%clk 0:04:09.7]} 14. c3 {[%clk 0:04:13.6]} 14... Nxd4 {[%clk 0:04:04]} 15.
cxd4 {[%clk 0:04:13.5]} 15... Bd7 {[%clk 0:03:54.1]} 16. O-O {[%clk 0:04:11.6]}
16... Ke7 {[%clk 0:03:51.7]} 17. a4 {[%clk 0:04:06]} 17... Rac8 {[%clk
0:03:48.5]} 18. a5 {[%clk 0:04:03.2]} 18... Qb3 {[%clk 0:03:38]} 19. Ra3 {[%clk
0:03:59.7]} 19... Qc2 {[%clk 0:03:36.9]} 20. Qb4+ {[%clk 0:03:55.7]} 20... Ke8
{[%clk 0:03:33.5]} 21. Bd3 {[%clk 0:03:33.3]} 21... Qc6 {[%clk 0:03:27.2]} 22.
Rc3 {[%clk 0:03:29.5]} 22... Qe6 {[%clk 0:03:25.2]} 23. Qxb7 {[%clk 0:03:14]}
23... Rxc3 {[%clk 0:03:08.1]} 24. bxc3 {[%clk 0:03:11.7]} 24... f6 {[%clk
0:03:02.4]} 25. Rb1 {[%clk 0:02:55.6]} 25... Kf7 {[%clk 0:02:55.6]} 26. Rb6
{[%clk 0:02:53.8]} 26... Qe7 {[%clk 0:02:52]} 27. Qxd5+ {[%clk 0:02:36.7]} 27...
Kg6 {[%clk 0:02:45.9]} 28. e6 {[%clk 0:02:33.7]} 28... Ba4 {[%clk 0:02:31]} 29.
Qxf5+ {[%clk 0:02:31.9]} 29... Kh6 {[%clk 0:02:28]} 30. Qh3# {[%clk 0:02:31.1]}
1-0

[Event "Live Chess"]
[Site "Chess.com"]
[Date "2023.05.20"]
[Round "-"]
[White "vinni3012"]
[Black "BearFromUkraine"]
[Result "1-0"]
[WhiteElo "1881"]
[BlackElo "1164"]
[TimeControl "300"]
[EndTime "9:50:48 PDT"]
[Termination "vinni3012 won by resignation"]

1. d4 {[%clk 0:04:59.1]} 1... d5 {[%clk 0:04:56.2]} 2. Nf3 {[%clk 0:04:58]} 2...
Nf6 {[%clk 0:04:53.8]} 3. c4 {[%clk 0:04:57.1]} 3... e6 {[%clk 0:04:52.6]} 4.
Nc3 {[%clk 0:04:54.8]} 4... Bb4 {[%clk 0:04:50.3]} 5. Bd2 {[%clk 0:04:36]} 5...
O-O {[%clk 0:04:39.8]} 6. e3 {[%clk 0:04:20.5]} 6... Bd7 {[%clk 0:04:33.4]} 7.
Ne5 {[%clk 0:04:16.3]} 7... Nc6 {[%clk 0:04:28.6]} 8. Nxd7 {[%clk 0:04:14.9]}
8... Qxd7 {[%clk 0:04:28]} 9. Bd3 {[%clk 0:03:54.3]} 9... dxc4 {[%clk
0:04:24.9]} 10. Bxc4 {[%clk 0:03:53]} 10... Rad8 {[%clk 0:04:10.7]} 11. a3
{[%clk 0:03:34.8]} 11... Bxc3 {[%clk 0:04:09.3]} 12. bxc3 {[%clk 0:03:34.7]}
12... Ne4 {[%clk 0:04:03.3]} 13. O-O {[%clk 0:03:31.4]} 13... Nxd2 {[%clk
0:04:01.8]} 14. Qxd2 {[%clk 0:03:31.3]} 14... Qe7 {[%clk 0:03:45.3]} 15. Rfb1
{[%clk 0:03:08.6]} 15... b6 {[%clk 0:03:19.8]} 16. f3 {[%clk 0:02:41.2]} 16...
Qf6 {[%clk 0:03:12]} 17. e4 {[%clk 0:02:34.3]} 17... e5 {[%clk 0:03:09.9]} 18.
d5 {[%clk 0:02:28.2]} 18... Na5 {[%clk 0:03:00]} 19. Bf1 {[%clk 0:02:25.6]}
19... c6 {[%clk 0:02:57.2]} 20. c4 {[%clk 0:02:23.8]} 20... cxd5 {[%clk
0:02:50.7]} 21. cxd5 {[%clk 0:02:22.8]} 21... Rc8 {[%clk 0:02:37.6]} 22. Ba6
{[%clk 0:02:13.7]} 22... Rcd8 {[%clk 0:02:28.2]} 23. Qb4 {[%clk 0:02:03.1]}
23... Rfe8 {[%clk 0:01:55]} 24. Rc1 {[%clk 0:01:56.5]} 24... Qe7 {[%clk
0:01:52]} 25. Rc3 {[%clk 0:01:47.5]} 25... Qxb4 {[%clk 0:01:49.7]} 26. axb4
{[%clk 0:01:47.4]} 1-0

[Event "Live Chess"]
[Site "Chess.com"]
[Date "2023.05.20"]
[Round "-"]
[White "Chesscoach_Golichenko"]
[Black "Tushinskiy"]
[Result "1-0"]
[WhiteElo "2646"]
[BlackElo "2094"]
[TimeControl "300"]
[EndTime "9:50:50 PDT"]
[Termination "Chesscoach_Golichenko won by resignation"]

1. d4 {[%clk 0:04:54.1]} 1... d5 {[%clk 0:04:50.6]} 2. Nc3 {[%clk 0:04:44.2]}
2... c6 {[%clk 0:04:50.5]} 3. Bf4 {[%clk 0:04:12.2]} 3... Nf6 {[%clk 0:04:39.9]}
4. f3 {[%clk 0:03:57.6]} 4... Bf5 {[%clk 0:04:36.7]} 5. g4 {[%clk 0:03:49.9]}
5... Bg6 {[%clk 0:04:27.6]} 6. h4 {[%clk 0:03:49]} 6... h5 {[%clk 0:04:25.9]} 7.
g5 {[%clk 0:03:48.1]} 7... Nfd7 {[%clk 0:04:25.3]} 8. e4 {[%clk 0:03:41.5]} 8...
e6 {[%clk 0:04:23.7]} 9. Bd3 {[%clk 0:03:38.6]} 9... Qb6 {[%clk 0:04:19.9]} 10.
Qd2 {[%clk 0:03:29.5]} 10... Qxd4 {[%clk 0:04:03.2]} 11. Be3 {[%clk 0:03:12.8]}
11... Qb4 {[%clk 0:03:57.2]} 12. exd5 {[%clk 0:03:10.8]} 12... Bxd3 {[%clk
0:03:55.3]} 13. dxe6 {[%clk 0:03:03.7]} 13... Bg6 {[%clk 0:03:53.3]} 14. exd7+
{[%clk 0:03:02.2]} 14... Nxd7 {[%clk 0:03:53.2]} 15. O-O-O {[%clk 0:03:00.9]}
15... O-O-O {[%clk 0:03:51.8]} 16. a3 {[%clk 0:02:40.7]} 16... Qa5 {[%clk
0:03:31.9]} 17. Nce2 {[%clk 0:02:26.7]} 17... Qa4 {[%clk 0:03:22.9]} 18. Qc3
{[%clk 0:02:15.5]} 18... Be7 {[%clk 0:03:08.7]} 19. Nf4 {[%clk 0:02:04.8]} 19...
Bf5 {[%clk 0:02:53.8]} 20. Nd5 {[%clk 0:01:53.8]} 20... Rhe8 {[%clk 0:02:43.5]}
21. Rd4 {[%clk 0:01:27.3]} 21... Qa6 {[%clk 0:02:23.7]} 22. Nb4 {[%clk
0:01:06.2]} 22... Qf1+ {[%clk 0:02:18.9]} 23. Rd1 {[%clk 0:01:04.5]} 23... Qb5
{[%clk 0:02:08.9]} 24. Nh3 {[%clk 0:01:00.8]} 24... Ne5 {[%clk 0:01:52.3]} 25.
Nf4 {[%clk 0:00:49.4]} 25... Nc4 {[%clk 0:01:44.5]} 26. Bxa7 {[%clk 0:00:42.3]}
26... Bd6 {[%clk 0:01:37.6]} 27. Nfd3 {[%clk 0:00:36.8]} 27... Re2 {[%clk
0:01:22.7]} 28. Rhe1 {[%clk 0:00:33.2]} 28... Be5 {[%clk 0:01:13.7]} 29. Nxe5
{[%clk 0:00:30.3]} 29... Rxd1+ {[%clk 0:01:05]} 30. Rxd1 {[%clk 0:00:27.4]}
30... Rxc2+ {[%clk 0:01:04.1]} 31. Nxc2 {[%clk 0:00:26.1]} 31... Bxc2 {[%clk
0:01:04]} 32. Qxc4 {[%clk 0:00:22.1]} 32... Qxc4 {[%clk 0:01:00.3]} 33. Nxc4
{[%clk 0:00:21]} 33... Bxd1 {[%clk 0:01:00.2]} 34. Kxd1 {[%clk 0:00:20.9]} 1-0

[Event "Live Chess"]
[Site "Chess.com"]
[Date "2023.05.20"]
[Round "-"]
[White "boilerboy1"]
[Black "CheckThis4"]
[Result "0-1"]
[WhiteElo "1095"]
[BlackElo "2538"]
[TimeControl "300"]
[EndTime "9:50:51 PDT"]
[Termination "CheckThis4 won on time"]

1. e4 {[%clk 0:04:54.1]} 1... c5 {[%clk 0:04:58.6]} 2. Nc3 {[%clk 0:04:52]} 2...
Nc6 {[%clk 0:04:55.8]} 3. Nf3 {[%clk 0:04:51.2]} 3... g6 {[%clk 0:04:52]} 4. Bc4
{[%clk 0:04:49]} 4... Bg7 {[%clk 0:04:48.3]} 5. Ne2 {[%clk 0:04:46.7]} 5... e6
{[%clk 0:04:45.7]} 6. c3 {[%clk 0:04:45.2]} 6... d5 {[%clk 0:04:43.4]} 7. exd5
{[%clk 0:04:43]} 7... exd5 {[%clk 0:04:42.6]} 8. Bb5 {[%clk 0:04:35.9]} 8... Nf6
{[%clk 0:04:38.2]} 9. Ng3 {[%clk 0:04:33.6]} 9... h5 {[%clk 0:04:35.4]} 10. h4
{[%clk 0:04:30.8]} 10... Bg4 {[%clk 0:04:33.6]} 11. O-O {[%clk 0:04:28.6]} 11...
O-O {[%clk 0:04:31.4]} 12. d4 {[%clk 0:04:26.8]} 12... cxd4 {[%clk 0:04:26]} 13.
cxd4 {[%clk 0:04:24.6]} 13... Bxf3 {[%clk 0:04:22.1]} 14. gxf3 {[%clk
0:04:17.3]} 14... Qb6 {[%clk 0:04:15.1]} 15. Bxc6 {[%clk 0:03:58]} 15... bxc6
{[%clk 0:04:15]} 16. Be3 {[%clk 0:03:53.7]} 16... Qxb2 {[%clk 0:04:09.9]} 17. a4
{[%clk 0:03:51]} 17... Qb4 {[%clk 0:04:05.7]} 18. a5 {[%clk 0:03:48]} 18... Qd6
{[%clk 0:04:03.9]} 19. Kg2 {[%clk 0:03:44.9]} 19... Rab8 {[%clk 0:04:02.8]} 20.
a6 {[%clk 0:03:38]} 20... Rb2 {[%clk 0:03:58.1]} 21. Qd3 {[%clk 0:02:59.9]}
21... Rfb8 {[%clk 0:03:48.2]} 22. Bg5 {[%clk 0:02:41.2]} 22... R8b3 {[%clk
0:03:41]} 23. Qd1 {[%clk 0:02:20.6]} 23... Nh7 {[%clk 0:03:25.3]} 24. Be3 {[%clk
0:02:04.3]} 24... Rxe3 {[%clk 0:03:21.4]} 25. Qa4 {[%clk 0:01:54.7]} 25... Ree2
{[%clk 0:03:15.3]} 26. Rac1 {[%clk 0:01:43.1]} 26... Rb6 {[%clk 0:03:04.6]} 27.
Nxe2 {[%clk 0:01:40.4]} 27... Nf8 {[%clk 0:02:55.8]} 28. Ng3 {[%clk 0:01:39]}
28... Ne6 {[%clk 0:02:54.5]} 29. Rce1 {[%clk 0:01:00.3]} 29... Rb4 {[%clk
0:02:45.8]} 30. Qa5 {[%clk 0:00:53.2]} 30... Rxd4 {[%clk 0:02:41.6]} 31. Rh1
{[%clk 0:00:27.6]} 31... Kh7 {[%clk 0:02:31.1]} 32. Qa1 {[%clk 0:00:15.9]} 32...
Nf4+ {[%clk 0:02:27.3]} 33. Kf1 {[%clk 0:00:09.2]} 33... Nd3 {[%clk 0:02:18.5]}
0-1

[Event "Live Chess"]
[Site "Chess.com"]
[Date "2023.05.20"]
[Round "-"]
[White "Bot_Boy"]
[Black "stevefairhurst"]
[Result "0-1"]
[WhiteElo "325"]
[BlackElo "542"]
[TimeControl "300"]
[EndTime "9:50:57 PDT"]
[Termination "stevefairhurst won on time"]

1. b4 {[%clk 0:04:57.1]} 1... Nc6 {[%clk 0:04:57]} 2. c3 {[%clk 0:04:54.8]} 2...
Nf6 {[%clk 0:04:53.5]} 3. d4 {[%clk 0:04:53]} 3... g6 {[%clk 0:04:51.8]} 4. Nf3
{[%clk 0:04:48.7]} 4... Bg7 {[%clk 0:04:50.3]} 5. Bg5 {[%clk 0:04:33.8]} 5...
O-O {[%clk 0:04:46.6]} 6. e3 {[%clk 0:04:19.9]} 6... h6 {[%clk 0:04:41.1]} 7.
Bxf6 {[%clk 0:04:05.6]} 7... exf6 {[%clk 0:04:39]} 8. h4 {[%clk 0:03:54.6]} 8...
d5 {[%clk 0:04:36.4]} 9. Bd3 {[%clk 0:03:52.8]} 9... Bg4 {[%clk 0:04:25.1]} 10.
Nbd2 {[%clk 0:03:39.9]} 10... Qd7 {[%clk 0:04:10.2]} 11. Qe2 {[%clk 0:03:28.3]}
11... Rae8 {[%clk 0:04:07.4]} 12. e4 {[%clk 0:03:07.3]} 12... dxe4 {[%clk
0:04:01.4]} 13. Bxe4 {[%clk 0:02:48.9]} 13... Ne7 {[%clk 0:03:56.2]} 14. O-O
{[%clk 0:02:36.2]} 14... a6 {[%clk 0:03:54.5]} 15. Bxb7 {[%clk 0:02:17.6]} 15...
Bf5 {[%clk 0:03:43.2]} 16. Qxa6 {[%clk 0:01:46.5]} 16... Be6 {[%clk 0:03:22.3]}
17. a4 {[%clk 0:01:23.4]} 17... Bd5 {[%clk 0:03:10.5]} 18. Bxd5 {[%clk
0:01:02.5]} 18... Qxd5 {[%clk 0:03:05.3]} 19. Rae1 {[%clk 0:00:48.4]} 19... Qa8
{[%clk 0:02:53.3]} 20. Qxa8 {[%clk 0:00:40.9]} 20... Rxa8 {[%clk 0:02:51.6]} 21.
a5 {[%clk 0:00:37.9]} 21... c6 {[%clk 0:02:48.8]} 22. Rxe7 {[%clk 0:00:36.3]}
22... Rae8 {[%clk 0:02:45.8]} 23. Rxe8 {[%clk 0:00:26.6]} 23... Rxe8 {[%clk
0:02:44.5]} 24. Re1 {[%clk 0:00:22.5]} 24... Rb8 {[%clk 0:02:39.2]} 25. Ra1
{[%clk 0:00:16.3]} 25... f5 {[%clk 0:02:34.5]} 26. a6 {[%clk 0:00:15.3]} 26...
Ra8 {[%clk 0:02:32.5]} 27. Ne5 {[%clk 0:00:14.4]} 27... Bxe5 {[%clk 0:02:28]}
28. dxe5 {[%clk 0:00:13]} 28... Kg7 {[%clk 0:02:23.4]} 29. Nc4 {[%clk
0:00:11.7]} 29... f6 {[%clk 0:02:20.8]} 30. e6 {[%clk 0:00:08.5]} 30... Kf8
{[%clk 0:02:19.6]} 31. Nb6 {[%clk 0:00:04.7]} 31... Ra7 {[%clk 0:02:17.1]} 32.
Nd7+ {[%clk 0:00:02.7]} 32... Ke7 {[%clk 0:02:15.1]} 33. Nc5 {[%clk 0:00:00.2]}
33... Kd6 {[%clk 0:02:10.6]} 34. Re1 {[%clk 0:00:00.1]} 34... Ke7 {[%clk
0:02:06.9]} 0-1